[Event "FIDE U16 Olympiad_boards_1-80"]
[Site "Eindhoven, Netherlands"]
[Date "2023.08.13"]
[Round "1.48"]
[White "O'carroll, Om"]
[Black "Kovalskyi, Roman"]
[Result "0-1"]
[TimeControl "2700+10"]
[WhiteElo "1284"]
[BlackElo "1989"]

1. e4 {[%clk 00:45:19]} c5 {[%clk 00:45:13]} {[%emt 00:00:08]} 2. Nf3 {[%clk
00:45:27]} {[%emt 00:00:02]} g6 {[%clk 00:45:22]} {[%emt 00:00:01]} 3. c3
{[%clk 00:45:27]} {[%emt 00:00:10]} d5 {[%clk 00:45:30]} {[%emt 00:00:02]} 4.
exd5 {[%clk 00:45:07]} {[%emt 00:00:29]} Qxd5 {[%clk 00:45:38]} {[%emt
00:00:03]} 5. d4 {[%clk 00:45:09]} {[%emt 00:00:07]} Bg7 {[%clk 00:45:37]}
{[%emt 00:00:11]} 6. Nbd2 {[%clk 00:44:58]} {[%emt 00:00:21]} cxd4 {[%clk
00:45:41]} {[%emt 00:00:06]} 7. Bc4 {[%clk 00:44:41]} {[%emt 00:00:27]} Qd8
{[%clk 00:45:49]} {[%emt 00:00:02]} 8. Qb3 {[%clk 00:37:51]} {[%emt 00:07:00]}
Nh6 {[%clk 00:45:41]} {[%emt 00:00:18]} 9. cxd4 {[%clk 00:35:51]} {[%emt
00:02:11]} O-O {[%clk 00:45:01]} {[%emt 00:00:49]} 10. O-O {[%clk 00:34:57]}
{[%emt 00:01:04]} Nc6 {[%clk 00:44:32]} {[%emt 00:00:39]} 11. d5 {[%clk
00:29:36]} {[%emt 00:05:31]} Na5 {[%clk 00:44:30]} {[%emt 00:00:12]} 12. Qb4
{[%clk 00:28:41]} {[%emt 00:01:05]} Nxc4 {[%clk 00:41:14]} {[%emt 00:03:26]} 13.
Qxc4 {[%clk 00:26:09]} {[%emt 00:02:42]} Bg4 {[%clk 00:38:20]} {[%emt
00:03:04]} 14. h3 {[%clk 00:25:26]} {[%emt 00:00:54]} Rc8 {[%clk 00:38:01]}
{[%emt 00:00:28]} 15. Qb3 {[%clk 00:24:52]} {[%emt 00:00:43]} Bxf3 {[%clk
00:35:44]} {[%emt 00:02:29]} 16. Nxf3 {[%clk 00:24:58]} {[%emt 00:00:03]} b6
{[%clk 00:34:42]} {[%emt 00:01:12]} 17. Bf4 {[%clk 00:24:36]} {[%emt 00:00:32]}
Nf5 {[%clk 00:34:10]} {[%emt 00:00:42]} 18. Rac1 {[%clk 00:23:06]} {[%emt
00:01:39]} Rc5 {[%clk 00:30:55]} {[%emt 00:03:26]} 19. Rfd1 {[%emt 00:11:26]}
Qa8 {[%clk 00:20:47]} 20. Ne5 {[%clk 00:20:50]} {[%emt 00:01:29]} Nd4 {[%clk
00:12:53]} {[%emt 00:08:03]} 21. Rxd4 {[%clk 00:18:24]} {[%emt 00:02:35]} Rxc1+
{[%clk 00:12:25]} {[%emt 00:00:39]} 22. Bxc1 {[%clk 00:18:21]} {[%emt
00:00:13]} Bxe5 {[%clk 00:12:32]} {[%emt 00:00:02]} 23. Re4 {[%clk 00:17:13]}
{[%emt 00:01:19]} Bf6 {[%clk 00:12:24]} {[%emt 00:00:18]} 24. Re1 {[%clk
00:14:31]} {[%emt 00:02:51]} Qc8 {[%clk 00:10:31]} {[%emt 00:02:03]} 25. Bh6
{[%clk 00:13:33]} {[%emt 00:01:09]} Rd8 {[%clk 00:10:34]} {[%emt 00:00:07]} 26.
Qb5 {[%clk 00:10:47]} {[%emt 00:02:56]} Qd7 {[%clk 00:04:56]} {[%emt 00:05:47]}
27. Qxd7 {[%clk 00:10:40]} {[%emt 00:00:18]} Rxd7 {[%clk 00:05:05]} {[%emt
00:00:02]} 28. Rc1 {[%clk 00:10:46]} {[%emt 00:00:03]} Rd8 {[%clk 00:01:08]}
{[%emt 00:04:07]} 29. Rc7 {[%clk 00:09:42]} {[%emt 00:01:14]} e6 {[%clk
00:00:28]} {[%emt 00:00:51]} 30. Rxa7 {[%clk 00:08:43]} {[%emt 00:01:08]} exd5
{[%clk 00:00:28]} {[%emt 00:00:11]} 31. b3 {[%clk 00:07:11]} {[%emt 00:01:42]}
d4 {[%clk 00:00:18]} {[%emt 00:00:20]} 32. Rb7 {[%clk 00:05:43]} {[%emt
00:01:37]} d3 {[%clk 00:00:27]} {[%emt 00:00:01]} 33. Bd2 {[%clk 00:05:39]}
{[%emt 00:00:14]} Bd4 {[%clk 00:00:36]} {[%emt 00:00:02]} 34. g3 {[%clk
00:03:44]} {[%emt 00:02:05]} Kg7 {[%clk 00:00:33]} {[%emt 00:00:13]} 35. a4
{[%clk 00:02:40]} {[%emt 00:01:13]} Kf6 {[%clk 00:00:19]} {[%emt 00:00:25]} 36.
h4 {[%clk 00:02:24]} {[%emt 00:00:26]} Ke6 {[%clk 00:00:15]} {[%emt 00:00:13]}
37. Rc7 {[%clk 00:02:13]} {[%emt 00:00:20]} Bc5 {[%clk 00:00:13]} {[%emt
00:00:13]} 38. b4 {[%clk 00:02:12]} {[%emt 00:00:12]} Bd4 {[%clk 00:00:15]}
{[%emt 00:00:07]} 39. a5 {[%clk 00:02:16]} {[%emt 00:00:07]} bxa5 {[%clk
00:00:20]} {[%emt 00:00:04]} 40. bxa5 {[%clk 00:02:24]} {[%emt 00:00:02]} Rb8
{[%clk 00:00:15]} {[%emt 00:00:15]} 41. a6 {[%clk 00:02:23]} {[%emt 00:00:12]}
Rb2 {[%clk 00:00:19]} {[%emt 00:00:04]} 42. Bf4 {[%clk 00:00:32]} {[%emt
00:02:02]} d2 {[%clk 00:00:19]} {[%emt 00:00:10]} 43. Bxd2 {[%clk 00:00:38]}
{[%emt 00:00:04]} Rxd2 {[%clk 00:00:27]} {[%emt 00:00:02]} 44. a7 {[%clk
00:00:31]} {[%emt 00:00:17]} Ra2 {[%clk 00:00:25]} {[%emt 00:00:12]} 0-1

[Event "FIDE U16 Olympiad_boards_1-80"]
[Site "Eindhoven, Netherlands"]
[Date "2023.08.13"]
[Round "1.49"]
[White "Bourg, Nicolas"]
[Black "Hagner, Bennet"]
[Result "1/2-1/2"]
[TimeControl "2700+10"]
[WhiteElo "1896"]
[BlackElo "2221"]

1. e4 {[%clk 00:45:18]} {[%emt 00:00:01]} c5 {[%clk 00:45:19]} 2. Nf3 {[%clk
00:45:26]} {[%emt 00:00:02]} d6 {[%clk 00:45:28]} {[%emt 00:00:02]} 3. d4
{[%clk 00:45:34]} {[%emt 00:00:01]} cxd4 {[%clk 00:45:37]} {[%emt 00:00:01]} 4.
Nxd4 {[%clk 00:45:41]} {[%emt 00:00:02]} Nf6 {[%clk 00:45:45]} {[%emt
00:00:03]} 5. Nc3 {[%clk 00:45:09]} {[%emt 00:00:42]} a6 {[%clk 00:45:54]}
{[%emt 00:00:02]} 6. Be2 {[%clk 00:45:00]} {[%emt 00:00:18]} e5 {[%clk
00:46:01]} {[%emt 00:00:03]} 7. Nb3 {[%clk 00:45:08]} {[%emt 00:00:02]} Be7
{[%clk 00:46:10]} {[%emt 00:00:01]} 8. O-O {[%clk 00:45:15]} {[%emt 00:00:03]}
O-O {[%clk 00:46:17]} {[%emt 00:00:03]} 9. f4 {[%clk 00:45:15]} {[%emt
00:00:10]} Nc6 {[%clk 00:46:09]} {[%emt 00:00:19]} 10. a4 {[%clk 00:44:43]}
{[%emt 00:00:42]} Re8 {[%clk 00:43:39]} {[%emt 00:02:39]} 11. f5 {[%clk
00:43:09]} {[%emt 00:01:44]} Nb4 {[%clk 00:40:43]} {[%emt 00:03:06]} 12. Bg5
{[%clk 00:41:30]} {[%emt 00:01:48]} b6 {[%clk 00:38:49]} {[%emt 00:02:06]} 13.
Bxf6 {[%clk 00:39:59]} {[%emt 00:01:40]} Bxf6 {[%clk 00:38:57]} {[%emt
00:00:02]} 14. Nd5 {[%clk 00:40:07]} {[%emt 00:00:02]} Nxd5 {[%clk 00:34:43]}
{[%emt 00:04:24]} 15. Qxd5 {[%clk 00:40:13]} {[%emt 00:00:03]} Rb8 {[%clk
00:34:51]} {[%emt 00:00:03]} 16. Bc4 {[%clk 00:38:11]} {[%emt 00:02:11]} Qc7
{[%clk 00:32:43]} {[%emt 00:02:19]} 17. Qd3 {[%clk 00:36:57]} {[%emt 00:01:24]}
b5 {[%clk 00:30:49]} {[%emt 00:02:05]} 18. axb5 {[%clk 00:36:56]} {[%emt
00:00:10]} axb5 {[%clk 00:30:57]} {[%emt 00:00:02]} 19. Bd5 {[%clk 00:37:04]}
{[%emt 00:00:02]} Bd7 {[%clk 00:25:23]} {[%emt 00:05:44]} 20. c3 {[%clk
00:34:31]} {[%emt 00:02:43]} Rec8 {[%clk 00:20:52]} {[%emt 00:04:40]} 21. Qe3
{[%clk 00:28:58]} {[%emt 00:05:44]} Rb6 {[%clk 00:20:28]} {[%emt 00:00:34]} 22.
Nc1 {[%clk 00:28:07]} {[%emt 00:01:00]} b4 {[%clk 00:17:16]} {[%emt 00:03:23]}
23. cxb4 {[%clk 00:27:39]} {[%emt 00:00:38]} Rxb4 {[%clk 00:16:31]} {[%emt
00:00:55]} 24. Ra7 {[%clk 00:27:24]} {[%emt 00:00:24]} Qd8 {[%clk 00:16:24]}
{[%emt 00:00:18]} 25. Nd3 {[%clk 00:27:07]} {[%emt 00:00:27]} Bg5 {[%clk
00:15:06]} {[%emt 00:01:28]} 26. Qg3 {[%clk 00:22:45]} {[%emt 00:04:32]} Bh4
{[%clk 00:11:06]} {[%emt 00:04:10]} 27. Qh3 {[%clk 00:17:33]} {[%emt 00:05:22]}
Qb6+ {[%clk 00:09:47]} {[%emt 00:01:30]} 28. Kh1 {[%clk 00:17:24]} {[%emt
00:00:18]} Qxa7 {[%clk 00:09:55]} {[%emt 00:00:02]} 29. Nxb4 {[%clk 00:11:42]}
{[%emt 00:05:53]} Bb5 {[%clk 00:08:12]} {[%emt 00:01:52]} 30. Rb1 {[%clk
00:09:35]} {[%emt 00:02:17]} Qf2 {[%clk 00:06:01]} {[%emt 00:02:22]} 31. f6
{[%clk 00:07:45]} {[%emt 00:01:59]} Rc7 {[%clk 00:06:00]} {[%emt 00:00:12]} 32.
Ra1 {[%clk 00:07:28]} {[%emt 00:00:27]} gxf6 {[%clk 00:05:17]} {[%emt
00:00:52]} 33. Qg4+ {[%clk 00:06:35]} {[%emt 00:01:02]} Bg5 {[%clk 00:05:24]}
{[%emt 00:00:04]} 34. b3 {[%clk 00:03:55]} {[%emt 00:02:50]} Qd4 {[%clk
00:02:38]} {[%emt 00:02:57]} 35. Rd1 {[%clk 00:03:55]} {[%emt 00:00:10]} Qxb4
{[%clk 00:01:24]} {[%emt 00:01:24]} 36. h4 {[%clk 00:04:03]} {[%emt 00:00:02]}
Be2 {[%clk 00:00:37]} {[%emt 00:00:57]} 37. Qxe2 {[%clk 00:03:12]} {[%emt
00:01:00]} Bxh4 {[%clk 00:00:45]} {[%emt 00:00:02]} 38. Rf1 {[%clk 00:02:44]}
{[%emt 00:00:37]} Bg5 {[%clk 00:00:53]} {[%emt 00:00:03]} 39. Qg4 {[%clk
00:02:46]} {[%emt 00:00:08]} Kg7 {[%clk 00:00:30]} {[%emt 00:00:34]} 40. Rxf6
{[%clk 00:02:15]} {[%emt 00:00:40]} Qe1+ {[%clk 00:00:27]} {[%emt 00:00:13]} 41.
Kh2 {[%clk 00:02:21]} {[%emt 00:00:04]} Kxf6 {[%clk 00:00:22]} {[%emt
00:00:15]} 42. Qf5+ {[%clk 00:02:29]} {[%emt 00:00:02]} Ke7 {[%clk 00:00:14]}
{[%emt 00:00:19]} 43. Qxf7+ {[%clk 00:01:17]} {[%emt 00:01:21]} Kd8 {[%clk
00:00:23]} {[%emt 00:00:01]} 44. Qg8+ {[%clk 00:01:16]} {[%emt 00:00:11]} Kd7
{[%clk 00:00:30]} {[%emt 00:00:02]} 45. Qe6+ {[%clk 00:01:13]} {[%emt
00:00:14]} Kd8 {[%clk 00:00:39]} {[%emt 00:00:01]} 46. Qg8+ {[%clk 00:01:01]}
{[%emt 00:00:21]} Kd7 {[%clk 00:00:48]} {[%emt 00:00:02]} 47. Qe6+ {[%clk
00:00:17]} {[%emt 00:00:54]} Kd8 {[%clk 00:00:55]} {[%emt 00:00:03]} 1/2-1/2

[Event "FIDE U16 Olympiad_boards_1-80"]
[Site "Eindhoven, Netherlands"]
[Date "2023.08.13"]
[Round "1.50"]
[White "Ermitsch, Magnus"]
[Black "Zaccaria, Noa"]
[Result "1-0"]
[TimeControl "2700+10"]
[WhiteElo "2297"]
[BlackElo "1496"]

1. e4 {[%clk 00:45:18]} c6 {[%clk 00:45:19]} {[%emt 00:00:02]} 2. Nf3 {[%clk
00:45:22]} {[%emt 00:00:05]} d5 {[%clk 00:45:28]} {[%emt 00:00:02]} 3. Nc3
{[%clk 00:45:30]} {[%emt 00:00:01]} Bg4 {[%clk 00:45:36]} {[%emt 00:00:01]} 4.
h3 {[%clk 00:45:40]} Bxf3 {[%clk 00:45:45]} {[%emt 00:00:02]} 5. Qxf3 {[%clk
00:45:48]} {[%emt 00:00:02]} e6 {[%clk 00:45:53]} {[%emt 00:00:02]} 6. Be2
{[%clk 00:45:38]} {[%emt 00:00:20]} Nf6 {[%clk 00:46:02]} {[%emt 00:00:02]} 7.
d3 {[%clk 00:45:35]} {[%emt 00:00:13]} Nbd7 {[%clk 00:45:14]} {[%emt 00:00:58]}
8. O-O {[%clk 00:45:19]} {[%emt 00:00:26]} Bb4 {[%clk 00:45:02]} {[%emt
00:00:22]} 9. Kh1 {[%clk 00:40:53]} {[%emt 00:04:36]} Bxc3 {[%clk 00:41:16]}
{[%emt 00:03:56]} 10. bxc3 {[%clk 00:41:01]} {[%emt 00:00:02]} dxe4 {[%clk
00:41:23]} {[%emt 00:00:03]} 11. dxe4 {[%clk 00:41:09]} O-O {[%clk 00:41:22]}
{[%emt 00:00:11]} 12. Ba3 {[%clk 00:39:29]} {[%emt 00:01:50]} Re8 {[%clk
00:41:16]} {[%emt 00:00:16]} 13. Rfd1 {[%clk 00:39:36]} {[%emt 00:00:03]} Qa5
{[%clk 00:40:24]} {[%emt 00:01:02]} 14. Bd6 {[%emt 00:20:46]} Rad8 {[%clk
00:24:43]} 15. Rab1 {[%clk 00:30:37]} {[%emt 00:04:25]} b6 {[%clk 00:19:29]}
{[%emt 00:05:24]} 16. Qe3 {[%clk 00:18:35]} {[%emt 00:12:11]} e5 {[%clk
00:15:07]} {[%emt 00:04:33]} 17. Bc4 {[%clk 00:14:13]} {[%emt 00:04:31]} c5
{[%clk 00:09:46]} {[%emt 00:05:32]} 18. Bb5 {[%clk 00:12:24]} {[%emt 00:01:59]}
Rc8 {[%clk 00:00:52]} {[%emt 00:09:04]} 19. Qe2 {[%clk 00:10:03]} {[%emt
00:02:30]} Qxc3 {[%clk 00:00:19]} {[%emt 00:00:44]} 20. Ba6 {[%clk 00:09:33]}
{[%emt 00:00:40]} Ra8 {[%clk 00:00:00]} {[%emt 00:00:19]} 1-0

[Event "FIDE U16 Olympiad_boards_1-80"]
[Site "Eindhoven, Netherlands"]
[Date "2023.08.13"]
[Round "1.51"]
[White "Ortiz Bogdanov, Pablo"]
[Black "Peglau, Dora"]
[Result "0-1"]
[TimeControl "2700+10"]
[WhiteElo "1484"]
[BlackElo "1861"]

1. e4 {[%clk 00:45:19]} c6 {[%clk 00:45:18]} {[%emt 00:00:03]} 2. d4 {[%clk
00:45:26]} {[%emt 00:00:02]} d5 {[%clk 00:45:26]} {[%emt 00:00:02]} 3. e5
{[%clk 00:45:34]} {[%emt 00:00:02]} c5 {[%clk 00:45:34]} {[%emt 00:00:03]} 4.
dxc5 {[%clk 00:45:37]} {[%emt 00:00:06]} Nc6 {[%clk 00:45:39]} {[%emt
00:00:05]} 5. Nf3 {[%clk 00:45:34]} {[%emt 00:00:12]} e6 {[%clk 00:45:43]}
{[%emt 00:00:07]} 6. a3 {[%clk 00:43:56]} {[%emt 00:01:49]} Bxc5 {[%clk
00:45:44]} {[%emt 00:00:09]} 7. b4 {[%clk 00:43:36]} {[%emt 00:00:29]} Bb6
{[%clk 00:45:07]} {[%emt 00:00:47]} 8. Bd3 {[%clk 00:42:07]} {[%emt 00:01:39]}
Nge7 {[%clk 00:44:18]} {[%emt 00:01:00]} 9. O-O {[%clk 00:40:17]} {[%emt
00:01:59]} Bd7 {[%clk 00:41:18]} {[%emt 00:03:11]} 10. Bb2 {[%clk 00:38:13]}
{[%emt 00:02:13]} Rc8 {[%clk 00:39:10]} {[%emt 00:02:18]} 11. Nbd2 {[%clk
00:36:49]} {[%emt 00:01:34]} Ng6 {[%clk 00:35:42]} {[%emt 00:03:38]} 12. g3
{[%clk 00:30:25]} {[%emt 00:06:32]} O-O {[%clk 00:32:29]} {[%emt 00:03:25]} 13.
h4 {[%clk 00:27:24]} {[%emt 00:03:11]} Qc7 {[%clk 00:30:37]} {[%emt 00:02:02]}
14. Re1 {[%clk 00:23:13]} {[%emt 00:04:21]} f6 {[%clk 00:28:31]} {[%emt
00:02:16]} 15. Bxg6 {[%clk 00:15:33]} {[%emt 00:07:50]} hxg6 {[%clk 00:28:40]}
{[%emt 00:00:01]} 16. Rc1 {[%clk 00:11:42]} {[%emt 00:04:02]} fxe5 {[%clk
00:26:48]} {[%emt 00:02:01]} 17. Bxe5 {[%clk 00:08:44]} {[%emt 00:03:08]} Nxe5
{[%clk 00:26:54]} {[%emt 00:00:04]} 18. Rxe5 {[%clk 00:08:11]} {[%emt
00:00:42]} Bxf2+ {[%clk 00:25:52]} {[%emt 00:01:13]} 19. Kg2 {[%clk 00:07:04]}
{[%emt 00:01:16]} Rf5 {[%clk 00:23:29]} {[%emt 00:02:35]} 20. Qe2 {[%clk
00:04:35]} {[%emt 00:02:38]} Rcf8 {[%clk 00:22:09]} {[%emt 00:01:31]} 21. Rf1
{[%clk 00:03:44]} {[%emt 00:01:00]} Bb6 {[%clk 00:17:30]} {[%emt 00:04:49]} 22.
Nb3 {[%clk 00:02:40]} {[%emt 00:01:14]} a6 {[%clk 00:09:14]} {[%emt 00:08:26]}
23. Rxf5 {[%clk 00:01:18]} {[%emt 00:01:31]} Rxf5 {[%clk 00:09:21]} {[%emt
00:00:05]} 24. Nbd4 {[%clk 00:00:41]} {[%emt 00:00:47]} Bxd4 {[%clk 00:08:39]}
{[%emt 00:00:51]} 25. Nxd4 {[%clk 00:00:45]} {[%emt 00:00:06]} Rxf1 {[%clk
00:08:38]} {[%emt 00:00:11]} 26. Kxf1 {[%clk 00:00:18]} {[%emt 00:00:38]} e5
{[%clk 00:08:41]} {[%emt 00:00:07]} 27. Kg1 {[%clk 00:00:11]} {[%emt 00:00:16]}
exd4 {[%clk 00:08:44]} {[%emt 00:00:07]} 28. Qf3 {[%clk 00:00:17]} {[%emt
00:00:04]} Qe5 {[%clk 00:08:44]} {[%emt 00:00:10]} 29. g4 {[%clk 00:00:14]}
{[%emt 00:00:13]} Qe4 {[%clk 00:08:39]} {[%emt 00:00:16]} 0-1

[Event "FIDE U16 Olympiad_boards_1-80"]
[Site "Eindhoven, Netherlands"]
[Date "2023.08.13"]
[Round "1.52"]
[White "Peglau, Charis"]
[Black "Reding, Sevda"]
[Result "1-0"]
[TimeControl "2700+10"]
[WhiteElo "1937"]
[BlackElo "1237"]

1. d4 {[%clk 00:45:17]} {[%emt 00:00:03]} Nf6 {[%clk 00:45:19]} {[%emt
00:00:02]} 2. c4 {[%clk 00:45:25]} {[%emt 00:00:02]} c5 {[%clk 00:45:27]}
{[%emt 00:00:01]} 3. Nf3 {[%clk 00:45:31]} {[%emt 00:00:04]} g6 {[%clk
00:45:28]} {[%emt 00:00:10]} 4. Nc3 {[%clk 00:45:33]} {[%emt 00:00:08]} cxd4
{[%clk 00:45:01]} {[%emt 00:00:37]} 5. Nxd4 {[%clk 00:45:39]} {[%emt 00:00:04]}
Bg7 {[%clk 00:45:09]} {[%emt 00:00:02]} 6. e4 {[%clk 00:44:32]} {[%emt
00:01:17]} d6 {[%clk 00:43:27]} {[%emt 00:01:52]} 7. Be2 {[%clk 00:44:24]}
{[%emt 00:00:17]} Qb6 {[%clk 00:41:27]} {[%emt 00:02:10]} 8. Nb3 {[%clk
00:41:32]} {[%emt 00:03:02]} O-O {[%clk 00:39:40]} {[%emt 00:01:57]} 9. Be3
{[%clk 00:41:18]} {[%emt 00:00:24]} Qd8 {[%clk 00:37:33]} {[%emt 00:02:18]} 10.
O-O {[%clk 00:40:46]} {[%emt 00:00:42]} Nc6 {[%clk 00:35:56]} {[%emt 00:01:47]}
11. Rc1 {[%clk 00:33:56]} {[%emt 00:07:00]} Bd7 {[%clk 00:31:03]} {[%emt
00:05:02]} 12. f3 {[%clk 00:26:28]} {[%emt 00:07:38]} Ne8 {[%clk 00:26:53]}
{[%emt 00:04:20]} 13. Qd2 {[%clk 00:24:25]} {[%emt 00:02:16]} Nc7 {[%clk
00:24:26]} {[%emt 00:02:35]} 14. Rfd1 {[%clk 00:23:32]} {[%emt 00:01:03]} Be6
{[%clk 00:18:05]} {[%emt 00:06:31]} 15. Nd5 {[%clk 00:18:34]} {[%emt 00:05:08]}
Rc8 {[%clk 00:09:39]} {[%emt 00:08:35]} 16. c5 {[%clk 00:13:05]} {[%emt
00:05:40]} Bxd5 {[%clk 00:07:17]} {[%emt 00:02:32]} 17. exd5 {[%clk 00:13:11]}
{[%emt 00:00:04]} Ne5 {[%clk 00:03:51]} {[%emt 00:03:36]} 18. cxd6 {[%clk
00:10:56]} {[%emt 00:02:24]} Qxd6 {[%clk 00:02:46]} {[%emt 00:01:14]} 19. Bc5
{[%clk 00:10:09]} {[%emt 00:00:58]} Qf6 {[%clk 00:01:59]} {[%emt 00:00:57]} 20.
d6 {[%clk 00:06:01]} {[%emt 00:04:18]} exd6 {[%clk 00:00:59]} {[%emt 00:01:11]}
21. Qxd6 {[%clk 00:04:57]} {[%emt 00:01:14]} b6 {[%clk 00:00:19]} {[%emt
00:00:49]} 22. Qxf6 {[%clk 00:04:55]} {[%emt 00:00:12]} Bxf6 {[%clk 00:00:26]}
{[%emt 00:00:03]} 23. Bxf8 {[%clk 00:04:58]} {[%emt 00:00:08]} Kxf8 {[%clk
00:00:35]} {[%emt 00:00:02]} 24. Ba6 {[%clk 00:04:55]} {[%emt 00:00:12]} Nxa6
{[%clk 00:00:16]} {[%emt 00:00:29]} 25. Rxc8+ {[%clk 00:05:03]} {[%emt
00:00:02]} Ke7 {[%clk 00:00:24]} 26. Nd4 {[%clk 00:04:23]} {[%emt 00:00:50]} h5
{[%clk 00:00:18]} {[%emt 00:00:17]} 27. f4 {[%clk 00:03:46]} {[%emt 00:00:47]}
Ng4 {[%clk 00:00:16]} {[%emt 00:00:12]} 28. Nc6+ {[%clk 00:03:38]} {[%emt
00:00:18]} Ke6 {[%clk 00:00:22]} {[%emt 00:00:04]} 29. Re8+ {[%clk 00:03:15]}
{[%emt 00:00:33]} Kf5 {[%clk 00:00:31]} {[%emt 00:00:01]} 30. g3 {[%clk
00:02:34]} {[%emt 00:00:50]} Bxb2 {[%clk 00:00:34]} {[%emt 00:00:07]} 31. Rd6
{[%clk 00:01:09]} {[%emt 00:01:36]} Nc5 {[%clk 00:00:14]} {[%emt 00:00:30]} 32.
Ne7+ {[%clk 00:00:50]} {[%emt 00:00:29]} Ke4 {[%clk 00:00:22]} {[%emt
00:00:02]} 33. Nxg6+ {[%clk 00:00:49]} {[%emt 00:00:11]} Kf3 {[%clk 00:00:17]}
{[%emt 00:00:15]} 34. Nh4# {[%clk 00:00:56]} {[%emt 00:00:03]} 1-0

[Event "FIDE U16 Olympiad_boards_1-80"]
[Site "Eindhoven, Netherlands"]
[Date "2023.08.13"]
[Round "1.53"]
[White "Atanasov, Anthony"]
[Black "Altynbekuly, Madiyar"]
[Result "1-0"]
[TimeControl "2700+10"]
[WhiteElo "2239"]
[BlackElo "1750"]

1. d4 {[%clk 00:45:19]} d5 {[%clk 00:45:14]} {[%emt 00:00:06]} 2. Bf4 {[%clk
00:45:26]} {[%emt 00:00:04]} c5 {[%clk 00:45:01]} {[%emt 00:00:23]} 3. e3
{[%clk 00:45:26]} {[%emt 00:00:10]} Nc6 {[%clk 00:45:01]} {[%emt 00:00:08]} 4.
Nf3 {[%emt 00:00:42]} Nf6 {[%clk 00:44:41]} 5. Nbd2 {[%clk 00:45:33]} {[%emt
00:00:03]} cxd4 {[%clk 00:40:41]} {[%emt 00:04:09]} 6. exd4 {[%clk 00:45:39]}
{[%emt 00:00:04]} Bg4 {[%clk 00:40:44]} {[%emt 00:00:08]} 7. c3 {[%clk
00:45:15]} {[%emt 00:00:34]} e6 {[%clk 00:40:33]} {[%emt 00:00:19]} 8. Bd3
{[%clk 00:45:09]} {[%emt 00:00:18]} Bd6 {[%clk 00:39:25]} {[%emt 00:01:17]} 9.
Bxd6 {[%clk 00:45:14]} {[%emt 00:00:06]} Qxd6 {[%clk 00:39:32]} {[%emt
00:00:02]} 10. O-O {[%clk 00:45:20]} {[%emt 00:00:04]} O-O {[%clk 00:39:09]}
{[%emt 00:00:30]} 11. Re1 {[%clk 00:44:28]} {[%emt 00:01:05]} Rab8 {[%clk
00:34:56]} {[%emt 00:04:23]} 12. a4 {[%clk 00:43:57]} {[%emt 00:00:41]} a6
{[%clk 00:31:44]} {[%emt 00:03:22]} 13. Qb1 {[%clk 00:44:04]} {[%emt 00:00:03]}
Bxf3 {[%clk 00:29:56]} {[%emt 00:01:58]} 14. Nxf3 {[%clk 00:44:12]} {[%emt
00:00:03]} b5 {[%clk 00:27:38]} {[%emt 00:02:28]} 15. axb5 {[%clk 00:44:19]}
{[%emt 00:00:03]} axb5 {[%clk 00:27:45]} {[%emt 00:00:03]} 16. b4 {[%clk
00:43:23]} {[%emt 00:01:05]} Rfc8 {[%clk 00:22:20]} {[%emt 00:05:35]} 17. Ne5
{[%clk 00:42:10]} {[%emt 00:01:22]} Ne7 {[%clk 00:21:19]} {[%emt 00:01:13]} 18.
Re3 {[%clk 00:39:52]} {[%emt 00:02:27]} Rc7 {[%clk 00:19:15]} {[%emt 00:02:15]}
19. Ra5 {[%clk 00:38:48]} {[%emt 00:01:13]} Rbc8 {[%clk 00:17:40]} {[%emt
00:01:46]} 20. Rxb5 {[%clk 00:37:03]} {[%emt 00:01:54]} Rxc3 {[%clk 00:15:43]}
{[%emt 00:02:07]} 21. Rc5 {[%clk 00:37:11]} {[%emt 00:00:02]} R3xc5 {[%clk
00:14:14]} {[%emt 00:01:40]} 22. dxc5 {[%clk 00:37:16]} {[%emt 00:00:05]} Qb8
{[%clk 00:13:45]} {[%emt 00:00:39]} 23. Re1 {[%clk 00:27:28]} {[%emt 00:09:57]}
d4 {[%clk 00:12:55]} {[%emt 00:01:01]} 24. Ba6 {[%clk 00:27:20]} {[%emt
00:00:18]} Rc7 {[%clk 00:12:33]} {[%emt 00:00:32]} 25. Nd3 {[%clk 00:26:45]}
{[%emt 00:00:44]} Nd7 {[%clk 00:10:04]} {[%emt 00:02:40]} 26. Qb2 {[%clk
00:16:27]} {[%emt 00:10:28]} e5 {[%clk 00:05:06]} {[%emt 00:05:08]} 27. Bc4
{[%clk 00:16:24]} {[%emt 00:00:13]} Ng6 {[%clk 00:04:38]} {[%emt 00:00:38]} 28.
Qb3 {[%clk 00:15:00]} {[%emt 00:01:34]} Qf8 {[%clk 00:02:44]} {[%emt 00:02:04]}
29. h4 {[%clk 00:13:35]} {[%emt 00:01:34]} h5 {[%clk 00:02:14]} {[%emt
00:00:40]} 30. Qd1 {[%clk 00:13:13]} {[%emt 00:00:29]} Qe7 {[%clk 00:00:54]}
{[%emt 00:01:34]} 31. Qxh5 {[%clk 00:13:13]} {[%emt 00:00:09]} Qf6 {[%clk
00:01:03]} {[%emt 00:00:02]} 32. Ra1 {[%clk 00:12:37]} {[%emt 00:00:45]} e4
{[%clk 00:00:53]} {[%emt 00:00:20]} 33. Ra6 {[%clk 00:12:08]} {[%emt 00:00:40]}
Rc6 {[%clk 00:00:44]} {[%emt 00:00:19]} 34. Rxc6 {[%clk 00:09:57]} {[%emt
00:02:21]} Qxc6 {[%clk 00:00:53]} 35. Bd5 {[%clk 00:09:30]} {[%emt 00:00:37]}
Qa6 {[%clk 00:00:59]} {[%emt 00:00:04]} 36. Bxe4 {[%clk 00:09:36]} {[%emt
00:00:03]} Nf6 {[%clk 00:01:06]} {[%emt 00:00:04]} 37. Qe2 {[%clk 00:09:11]}
{[%emt 00:00:34]} Ne5 {[%clk 00:01:08]} {[%emt 00:00:09]} 38. Bf5 {[%clk
00:08:55]} {[%emt 00:00:25]} Nc6 {[%clk 00:00:53]} {[%emt 00:00:25]} 39. Qf3
{[%clk 00:06:33]} {[%emt 00:02:32]} Ne7 {[%clk 00:00:29]} {[%emt 00:00:35]} 40.
Be4 {[%clk 00:06:22]} {[%emt 00:00:20]} Qe6 {[%clk 00:00:22]} {[%emt 00:00:17]}
41. Bb7 {[%clk 00:06:06]} {[%emt 00:00:26]} Qc4 {[%clk 00:00:17]} {[%emt
00:00:15]} 42. c6 {[%clk 00:04:18]} {[%emt 00:01:58]} Ned5 {[%clk 00:00:25]}
{[%emt 00:00:02]} 43. g4 {[%clk 00:03:33]} {[%emt 00:00:55]} Nxg4 {[%clk
00:00:23]} {[%emt 00:00:13]} 44. Qxg4 {[%clk 00:03:13]} {[%emt 00:00:29]} Qxd3
{[%clk 00:00:31]} {[%emt 00:00:02]} 45. c7 {[%clk 00:03:21]} {[%emt 00:00:02]}
Nxc7 {[%clk 00:00:18]} {[%emt 00:00:23]} 46. Qc8+ {[%clk 00:03:29]} {[%emt
00:00:02]} Kh7 {[%clk 00:00:28]} 47. Qxc7 {[%clk 00:03:38]} {[%emt 00:00:01]}
Qb1+ {[%clk 00:00:35]} {[%emt 00:00:03]} 48. Kg2 {[%clk 00:03:42]} {[%emt
00:00:05]} Qxb4 {[%clk 00:00:43]} {[%emt 00:00:02]} 49. Be4+ {[%clk 00:03:45]}
{[%emt 00:00:07]} Kh6 {[%clk 00:00:49]} {[%emt 00:00:05]} 50. Qf4+ {[%clk
00:03:51]} {[%emt 00:00:03]} 1-0